{"text_format":"1","workbook":"xlsx","n_sheets":5,"sheets":["EscalaReferência","Profs Condições Especiais","Profs Contratados","Profs Quadro Sem Aulas Obser","Profs Quadro Com Aulas Observ"],"not_rendered":{"charts":0,"images":4,"macros":1,"external_links":0,"defined_names":7,"comments":0,"pivot_tables":0},"unopened":[],"bounds":{"document_bytes":16777216,"sheet_cells":100000,"rows_first":2000,"rows_last":500,"rows_between":2000,"halvings":0,"cell_chars":16384,"cell_head_chars":4096},"cells_cut":0,"cells_raw":0,"read":"whole","date_system":"1900"}

{"sheet":"EscalaReferência","index":0,"n_rows":22,"n_cols":4,"rows_kept":22,"cut":false,"hidden":false,"merged":[[9,1,9,2],[10,1,10,2],[1,1,1,2],[2,1,2,2],[3,1,3,2],[4,1,4,2],[5,1,5,2]]}
[]
[null,"NOTA:"]
[null,"DAS QUATRO FICHAS DE REGISTO AVALIAÇÃO DO DESEMPENHO DOCENTE, "]
[null,"cada Avaliador preenche apenas a ficha que corresponda à situação do Avaliado."]
[null,"Condições Especiais-Contratados-Quadro Sem Aulas Observadas e Quadro Com Aulas Observadas"]
[null,"Preencher os campos não protegidos, os cálculos são automáticos*"]
[]
[]
[]
[null,"Escala de referência "]
[null,"À classificação quantitativa de cada uma das menções qualitativas corresponde o seguinte: Excelente 10 - 9 valores; Muito Bom 8,9 - 8 valores; Bom 7,9 - 6,5 valores; Regular 6,4 - 5 valores; Insuficiente 4,9 - 1 valores."]
[null,"O docente demonstra falhas graves nos aspectos fundamentais do desempenho neste parâmetro ou apenas os demonstra de forma inconsistente","1,0 a 4,9"]
[null,"O docente cumpre genericamente os aspetos fundamentais do desempenho neste parâmetro mas com algumas insuficiências ou lacunas","5,0 a 6,4"]
[null,"O desempenho docente satisfaz globalmente o indicador da competência neste parâmetro","6,5 a 7,9"]
[null,"O desempenho docente corresponde sempre ao indicador da competência no parâmetro e revela elevada e consistente qualidade ","8,0 a 8,9"]
[null,"O desempenho docente corresponde plenamente ao indicador da competência no parâmetro e revela elevada e consistente qualidade constituindo-se uma referência no grupo/escola/comunidade","9,0 a 10"]
[]
[null,"Classificação quantitativa (Introduzir valores)",8.9499999999999993,"<<"]
[null,"Arredondado",{"$f":"ROUND(C18,1)","v":9}]
[null,"Classificação qualitativa",{"$f":"IF(C19<5,\"Insuf\",IF(C19<6.5,\"Regular\",IF(C19<8,\"Bom\",IF(C19<9,\"Muito Bom\",\"Excelente\"))))","v":"Excelente"}]
[]
[null,"* se detetar algum erro de cálculo, por favor avise a SADD"]

{"sheet":"Profs Condições Especiais","index":1,"n_rows":83,"n_cols":30,"rows_kept":83,"cut":false,"hidden":false,"merged":[[71,1,71,23],[73,1,73,23],[58,1,58,9],[62,1,66,23],[67,1,67,23],[8,5,8,13],[8,18,8,22],[2,1,2,23],[3,1,3,23],[4,1,4,23],[6,5,6,18],[6,20,6,22],[10,1,10,23],[11,29,13,29],[12,5,12,18],[12,20,12,22],[16,5,16,13],[16,18,16,22],[16,29,17,29],[18,1,18,23],[20,6,20,8],[20,10,20,12],[22,6,22,15],[22,19,22,22],[37,2,37,22],[25,2,25,22],[26,2,26,21],[26,23,36,23],[27,2,27,21],[28,2,28,21],[29,2,29,21],[30,2,30,21],[31,2,31,21],[32,2,32,21],[33,2,33,21],[34,2,34,21],[35,2,35,21],[36,2,36,21],[43,2,43,19],[43,20,43,23],[45,13,45,22],[38,2,38,22],[39,19,39,23],[40,20,40,21],[40,22,40,23],[41,1,41,23],[42,2,42,19],[42,20,42,23]]}
[]
[]
[null,"FICHA DE REGISTO AVALIAÇÃO DO DESEMPENHO DOCENTE"]
[null,"PRÉ-ESCOLAR, 1º, 2º E 3º CICLOS E SECUNDÁRIO-PROFESSORES DOS QUADROS (Condições Especiais) "]
[null,"QUADRO A - Identificação do Avaliado",null,null,null,null,null,null,null,null,null,null,null,null,null,null,null,null,null,null,null,null,null,null,null,null,null,null,null,"Escala de referência "]
[]
[null,null,null,null,"Nome:",null,null,null,null,null,null,null,null,null,null,null,null,null,null,"NIF:",null,null,null,null,null,null,null,null,null,"À classificação quantitativa de cada uma das menções qualitativas correspondem os seguintes pontos: Excelente - 10-9 valores; Muito Bom -8,9-8 valores; Bom - 7,9- 6,5 valores; Regular -6,4-5,0 valores; Insuficiente - 4,9 - 0 valores."]
[]
[null,null,null,null,"Departamento Curricular:",null,null,null,null,null,null,null,null,null,null,null,null,"Grupo de Recrutamento: "]
[]
[null,"QUADRO B - Identificação do Avaliador"]
[null,null,null,null,null,null,null,null,null,null,null,null,null,null,null,null,null,null,null,null,null,null,null,null,null,null,null,null,null,"O docente cumpre genericamente os aspetos fundamentais do desempenho neste parâmetro mas com algumas insuficiências ou lacunas"]
[null,null,null,null,"Nome:",null,null,null,null,null,null,null,null,null,null,null,null,null,null,"NIF:"]
[]
[null,"Condição de Avaliador:",null,null,null,null,null,null,"Avaliador interno:",null,null,null,null,null,null,null," Coordenador de Departamento:",null,null,null,null," Diretor:"]
[null,null,null,null,null,null,null,null,null,null,null,null,null,null,null,null,null," "]
[null,null,null,null,"Departamento Curricular:",null,null,null,null,null,null,null,null,null,null,null,null,"Grupo de Recrutamento: ",null,null,null,null,null,null,null,null,null,null,null,"O desempenho docente corresponde sempre ao indicador da competência no parâmetro e revela elevada e consistente qualidade "]
[]
[null,"QUADRO C - Condições de Avaliação  ",null,null,null,null,null,null,null,null,null,null,null,null,null,null,null,null,null,null,null,null,null,null,null,null,null,null,null,"O desempenho docente corresponde plenamente ao indicador da competência no parâmetro e revela elevada e consistente qualidade constituindo-se uma referência no grupo/escola/comunidade"]
[]
[null,"Período de avaliação:",null,null,null,"de",null,null,null,"a","2023-08-31",null,null,null,null,"Componente letiva:",null,null,"Sim","X",null,"Não"]
[]
[null,null,null,null,null,"Instituição onde exerceu funções:","Agrupamento de Escolas da Trafaria",null,null,null,null,null,null,null,null,null,null,null,"Função exercida:","Docente"]
[]
[]
[null,"B","PARTICIPAÇÃO NA ESCOLA E RELAÇÃO COM A COMUNIDADE EDUCATIVA",null,null,null,null,null,null,null,null,null,null,null,null,null,null,null,null,null,null,null,null,{"$f":"X27*0.8","v":6.6711111111111112}]
[null,"B1","Participação na conceção, desenvolvimento e avaliação dos documentos institucionais orientadores da vida da escola",null,null,null,null,null,null,null,null,null,null,null,null,null,null,null,null,null,null,null,{"$f":"AVERAGE(W28:W30)","v":8.6666666666666661},{"$f":"AVERAGE(W27,W31,W35)","v":8.3388888888888886}]
[null,"B1.1","Contribui para a eficácia das estruturas de coordenação educativa e supervisão pedagógica, nos órgãos de administração e gestão e noutras estruturas  em que participou.",null,null,null,null,null,null,null,null,null,null,null,null,null,null,null,null,null,null,null,8.6]
[null,"B1.2","Participa na conceção e uso de dispositivos de avaliação da escola.",null,null,null,null,null,null,null,null,null,null,null,null,null,null,null,null,null,null,null,8.6]
[null,"B1.3","Envolve-se em ações que visam a participação de pais e encarregados de educação e/ou outras entidades.",null,null,null,null,null,null,null,null,null,null,null,null,null,null,null,null,null,null,null,8.8000000000000007]
[null,"B2","Participação nas estruturas de coordenação educativa e supervisão e nos órgãos de administração e gestão",null,null,null,null,null,null,null,null,null,null,null,null,null,null,null,null,null,null,null,{"$f":"AVERAGE(W32:W34)","v":7.6000000000000005}]
[null,"B2.1","Participa em projetos de trabalho colaborativo na escola.",null,null,null,null,null,null,null,null,null,null,null,null,null,null,null,null,null,null,null,9.3000000000000007]
[null,"B2.2","Apresenta propostas que contribuem para a melhoria do desempenho da escola.",null,null,null,null,null,null,null,null,null,null,null,null,null,null,null,null,null,null,null,8.1999999999999993]
[null,"B2.3","Contribui para a eficácia das estruturas de coordenação educativa e supervisão pedagógica e nos órgãos de administração.",null,null,null,null,null,null,null,null,null,null,null,null,null,null,null,null,null,null,null,5.3]
[null,"B3","Dinamização de Projetos e Atividades da escola que visam o Desenvolvimento da Comunidade",null,null,null,null,null,null,null,null,null,null,null,null,null,null,null,null,null,null,null,{"$f":"AVERAGE(W36:W37)","v":8.75}]
[null,"B3.1","Envolve-se em projetos e atividades da escola que visam o desenvolvimento da comunidade.",null,null,null,null,null,null,null,null,null,null,null,null,null,null,null,null,null,null,null,9.3000000000000007]
[null,"B3.2","Apresenta propostas que contribuem para a melhoria do desempenho da escola.",null,null,null,null,null,null,null,null,null,null,null,null,null,null,null,null,null,null,null,8.1999999999999993]
[null,"C","FORMAÇÃO CONTÍNUA E DESENVOLVIMENTO PROFISSIONAL",null,null,null,null,null,null,null,null,null,null,null,null,null,null,null,null,null,null,null,null,{"$f":"X39*0.2","v":2}]
[null,"C.1","Participa em ações de formação e em processos de atualização do conhecimento profissional. ",null,null,null,null,null,null,null,null,null,null,null,null,null,null,null,null,null,null,null,null,10]
[null,null,null,null,null,null,null,null,null,null,null,null,null,null,null,null,null,null,null,"Classificação final proposta (0,60xA+0,20xB+0,20xC)"]
[null,null,null,null,null,null,null,null,null,null,null,null,null,null,null,null,null,null,null,"Avaliação Final ",{"$f":" X26+X38+#REF!","v":{"$error":"#REF!"}}]
[]
[null,null,"Pontuação Final:",null,null,null,null,null,null,null,null,null,null,null,null,null,null,null,null,null,{"$f":"ROUND(X26+X38,1)","v":8.6999999999999993}]
[null,null,"PROPOSTA DE CLASSIFICAÇÃO:",null,null,null,null,null,null,null,null,null,null,null,null,null,null,null,null,null,{"$f":"IF(U43<5,\"Insuf\",IF(U43<6.5,\"Regular\",IF(U43<8,\"Bom\",\"Muito Bom\")))","v":"Muito Bom"}]
[]
[null,null,null,"Data:","____/ ____/ _____",null,null,null,null,null,null,"O Avaliador:"]
[null,null,null,"Data:","____/ ____/ _____",null,null,null,null,null,null,"O Avaliado:"]
[]
[]
[]
[]
[]
[]
[]
[]
[]
[]
[]
[null,"Avaliação Final do Desempenho"]
[]
[null,"Classificação: _____________________________________ Menção Qualitativa: ________________________"]
[]
[null,"Fundamentação da avaliação:"]
[]
[]
[]
[]
[null,"Aprovação pela Secção de Avaliação em:    ______ / ______ / _________"]
[]
[null,"Assinaturas:                  "]
[]
[]
[]
[]
[]
[]
[null,"Comunicação da Avaliação Final do Desempenho"]
[]
[null,"Tomei conhecimento"]
[]
[null,"Data: ______ / ______ / __________"]
[]
[null,"Assinatura do Avaliado: __________________________________"]

{"sheet":"Profs Contratados","index":2,"n_rows":87,"n_cols":30,"rows_kept":87,"cut":false,"hidden":false,"merged":[[62,1,62,9],[66,1,70,23],[71,1,71,23],[75,1,75,23],[77,1,77,23],[8,5,8,13],[8,18,8,22],[2,1,2,23],[3,1,3,23],[4,1,4,23],[6,5,6,18],[6,20,6,22],[25,2,25,22],[10,1,10,23],[11,29,13,29],[12,5,12,18],[12,20,12,22],[16,5,16,13],[16,18,16,22],[16,29,17,29],[18,1,18,23],[20,6,20,8],[20,10,20,12],[22,6,22,15],[22,19,22,22],[26,2,26,23],[27,2,27,21],[27,23,31,23],[28,2,28,21],[29,2,29,21],[30,2,30,21],[31,2,31,21],[36,2,36,21],[36,23,40,23],[37,2,37,21],[38,2,38,21],[39,2,39,21],[40,2,40,21],[32,2,32,23],[33,2,33,21],[33,23,34,23],[34,2,34,21],[35,2,35,23],[41,2,41,22],[42,2,42,21],[42,23,52,23],[43,2,43,21],[44,2,44,21],[45,2,45,21],[46,2,46,21],[47,2,47,21],[48,2,48,21],[49,2,49,21],[50,2,50,21],[51,2,51,21],[52,2,52,21],[57,2,57,19],[57,20,57,23],[59,13,59,22],[53,19,53,23],[54,20,54,21],[54,22,54,23],[55,1,55,23],[56,2,56,19],[56,20,56,23]]}
[]
[]
[null,"FICHA DE REGISTO AVALIAÇÃO DO DESEMPENHO DOCENTE"]
[null,"PRÉ-ESCOLAR, 1º, 2º E 3º CICLOS E SECUNDÁRIO-PROFESSORES CONTRATADOS"]
[null,"QUADRO A - Identificação do Avaliado",null,null,null,null,null,null,null,null,null,null,null,null,null,null,null,null,null,null,null,null,null,null,null,null,null,null,null,"Escala de referência "]
[]
[null,null,null,null,"Nome:",null,null,null,null,null,null,null,null,null,null,null,null,null,null,"NIF:",null,null,null,null,null,null,null,null,null,"À classificação quantitativa de cada uma das menções qualitativas correspondem os seguintes pontos: Excelente - 10-9 valores; Muito Bom -8,9-8 valores; Bom - 7,9- 6,5 valores; Regular -6,4-5,0 valores; Insuficiente - 4,9 - 0 valores."]
[]
[null,null,null,null,"Departamento Curricular:",null,null,null,null,null,null,null,null,null,null,null,null,"Grupo de Recrutamento: "]
[]
[null,"QUADRO B - Identificação do Avaliador"]
[null,null,null,null,null,null,null,null,null,null,null,null,null,null,null,null,null,null,null,null,null,null,null,null,null,null,null,null,null,"O docente cumpre genericamente os aspetos fundamentais do desempenho neste parâmetro mas com algumas insuficiências ou lacunas"]
[null,null,null,null,"Nome:",null,null,null,null,null,null,null,null,null,null,null,null,null,null,"NIF:"]
[]
[null,"Condição de Avaliador:",null,null,null,null,null,null,"Avaliador interno:",null,null,null,null,null,null,null," Coordenador de Departamento:",null,null,null,null," Diretor:"]
[null,null,null,null,null,null,null,null,null,null,null,null,null,null,null,null,null," "]
[null,null,null,null,"Departamento Curricular:",null,null,null,null,null,null,null,null,null,null,null,null,"Grupo de Recrutamento: ",null,null,null,null,null,null,null,null,null,null,null,"O desempenho docente corresponde sempre ao indicador da competência no parâmetro e revela elevada e consistente qualidade "]
[]
[null,"QUADRO C - Condições de Avaliação  ",null,null,null,null,null,null,null,null,null,null,null,null,null,null,null,null,null,null,null,null,null,null,null,null,null,null,null,"O desempenho docente corresponde plenamente ao indicador da competência no parâmetro e revela elevada e consistente qualidade constituindo-se uma referência no grupo/escola/comunidade"]
[]
[null,"Período de avaliação:",null,null,null,"de",null,null,null,"a","2023-08-31",null,null,null,null,"Componente letiva:",null,null,"Sim","X",null,"Não"]
[]
[null,null,null,null,null,"Instituição onde exerceu funções:","Agrupamento de Escolas da Trafaria",null,null,null,null,null,null,null,null,null,null,null,"Função exercida:","Docente"]
[]
[]
[null,"A","DIMENSÃO CIENTIFICA E PEDAGÓGICA",null,null,null,null,null,null,null,null,null,null,null,null,null,null,null,null,null,null,null,null,{"$f":"AVERAGE(X28,X34,X37)*0.6","v":5.3239999999999998}]
[null,"A1","Preparação e organização das atividades letivas"]
[null,"A1.1","Demonstra conhecimento científico, pedagógico e didático inerente à disciplina ou área curricular.",null,null,null,null,null,null,null,null,null,null,null,null,null,null,null,null,null,null,null,10,{"$f":"AVERAGE(W28:W32)","v":8.8000000000000007}]
[null,"A1.2","Planifica o ensino de acordo com as finalidades e as aprendizagens previstas no currículo/orientações curriculares e rentabiliza os meios e recursos. ",null,null,null,null,null,null,null,null,null,null,null,null,null,null,null,null,null,null,null,8.6]
[null,"A1.3","Integra a sua planificação no quadro dos vários níveis e âmbitos da   decisão   curricular,   tendo   em conta a articulação vertical e horizontal, em conjunto com os pares.",null,null,null,null,null,null,null,null,null,null,null,null,null,null,null,null,null,null,null,7.6]
[null,"A1.4","Concebe e planifica estratégias adequadas aos diferentes alunos e contextos.",null,null,null,null,null,null,null,null,null,null,null,null,null,null,null,null,null,null,null,9.3000000000000007]
[null,"A1.5","Planifica de forma integrada e coerente os vários tipos de avaliação.",null,null,null,null,null,null,null,null,null,null,null,null,null,null,null,null,null,null,null,8.5]
[null,"A2","Relação pedagógica com os alunos"]
[null,"A2.1","Promove e gere processos de comunicação e interação entre os alunos.",null,null,null,null,null,null,null,null,null,null,null,null,null,null,null,null,null,null,null,9,{"$f":"AVERAGE(W34:W35)","v":9.3000000000000007}]
[null,"A2.2","Promove o respeito pelas regras de convivência e cidadania.",null,null,null,null,null,null,null,null,null,null,null,null,null,null,null,null,null,null,null,9.6]
[null,"A3","Processo de avaliação das aprendizagens dos alunos"]
[null,"A3.1","Demonstra conhecimento científico, pedagógico e didático inerente à disciplina/área curricular.",null,null,null,null,null,null,null,null,null,null,null,null,null,null,null,null,null,null,null,8.5,{"$f":"AVERAGE(W37:W41)","v":8.52}]
[null,"A3.2","Desenvolve atividades de avaliação das aprendizagens para efeitos de diagnóstico, regulação do processo de ensino e avaliação e certificação de resultados.",null,null,null,null,null,null,null,null,null,null,null,null,null,null,null,null,null,null,null,9]
[null,"A3.3","Promove processos de autorregulação nos alunos que lhes permitam apreciar e melhorar os seus desempenhos.",null,null,null,null,null,null,null,null,null,null,null,null,null,null,null,null,null,null,null,8.6]
[null,"A3.4","Aplica instrumentos adequados à monitorização da sua atividade.",null,null,null,null,null,null,null,null,null,null,null,null,null,null,null,null,null,null,null,8.1999999999999993]
[null,"A3.5","Reorienta a planificação e o desenvolvimento do ensino de acordo com a apreciação realizada.",null,null,null,null,null,null,null,null,null,null,null,null,null,null,null,null,null,null,null,8.3000000000000007]
[null,"B","PARTICIPAÇÃO NA ESCOLA E RELAÇÃO COM A COMUNIDADE EDUCATIVA",null,null,null,null,null,null,null,null,null,null,null,null,null,null,null,null,null,null,null,null,{"$f":"X43*0.4","v":3.482222222222223}]
[null,"B1","Participação na conceção, desenvolvimento e avaliação dos documentos institucionais orientadores da vida da escola",null,null,null,null,null,null,null,null,null,null,null,null,null,null,null,null,null,null,null,{"$f":"AVERAGE(W44:W46)","v":8.8666666666666671},{"$f":"AVERAGE(W43,W47,W51)","v":8.7055555555555575}]
[null,"B1.1","Contribui para a eficácia das estruturas de coordenação educativa e supervisão pedagógica, nos órgãos de administração e gestão e noutras estruturas  em que participou.",null,null,null,null,null,null,null,null,null,null,null,null,null,null,null,null,null,null,null,9.3000000000000007]
[null,"B1.2","Participa na conceção e uso de dispositivos de avaliação da escola.",null,null,null,null,null,null,null,null,null,null,null,null,null,null,null,null,null,null,null,9]
[null,"B1.3","Envolve-se em ações que visam a participação de pais e encarregados de educação e/ou outras entidades.",null,null,null,null,null,null,null,null,null,null,null,null,null,null,null,null,null,null,null,8.3000000000000007]
[null,"B2","Participação nas estruturas de coordenação educativa e supervisão e nos órgãos de administração e gestão",null,null,null,null,null,null,null,null,null,null,null,null,null,null,null,null,null,null,null,{"$f":"AVERAGE(W48:W50)","v":8.2000000000000011}]
[null,"B2.1","Participa em projetos de trabalho colaborativo na escola.",null,null,null,null,null,null,null,null,null,null,null,null,null,null,null,null,null,null,null,8.1999999999999993]
[null,"B2.2","Apresenta propostas que contribuem para a melhoria do desempenho da escola.",null,null,null,null,null,null,null,null,null,null,null,null,null,null,null,null,null,null,null,9.3000000000000007]
[null,"B2.3","Contribui para a eficácia das estruturas de coordenação educativa e supervisão pedagógica e nos órgãos de administração.",null,null,null,null,null,null,null,null,null,null,null,null,null,null,null,null,null,null,null,7.1]
[null,"B3","Dinamização de Projetos e Atividades da escola que visam o Desenvolvimento da Comunidade",null,null,null,null,null,null,null,null,null,null,null,null,null,null,null,null,null,null,null,{"$f":"AVERAGE(W52:W53)","v":9.0500000000000007}]
[null,"B3.1","Envolve-se em projetos e atividades da escola que visam o desenvolvimento da comunidade.",null,null,null,null,null,null,null,null,null,null,null,null,null,null,null,null,null,null,null,9]
[null,"B3.2","Apresenta propostas que contribuem para a melhoria do desempenho da escola.",null,null,null,null,null,null,null,null,null,null,null,null,null,null,null,null,null,null,null,9.1]
[null,null,null,null,null,null,null,null,null,null,null,null,null,null,null,null,null,null,null,"Classificação final proposta (0,60xA+0,20xB+0,20xC)"]
[null,null,null,null,null,null,null,null,null,null,null,null,null,null,null,null,null,null,null,"Avaliação Final ",{"$f":" X42+#REF!+X26","v":{"$error":"#REF!"}}]
[]
[null,null,"Pontuação Final:",null,null,null,null,null,null,null,null,null,null,null,null,null,null,null,null,null,{"$f":"ROUND(X26+X42,1)","v":8.8000000000000007}]
[null,null,"PROPOSTA DE CLASSIFICAÇÃO:",null,null,null,null,null,null,null,null,null,null,null,null,null,null,null,null,null,{"$f":"IF(U57<5,\"Insuf\",IF(U57<6.5,\"Regular\",IF(U57<8,\"Bom\",\"Muito Bom\")))","v":"Muito Bom"}]
[]
[null,null,null,"Data:","____/ ____/ _____",null,null,null,null,null,null,"O Avaliador:"]
[null,null,null,"Data:","____/ ____/ _____",null,null,null,null,null,null,"O Avaliado:"]
[]
[null,"Avaliação Final do Desempenho"]
[]
[null,"Classificação: ___________________________________ Menção Qualitativa: ________________________"]
[]
[null,"Fundamentação da avaliação:"]
[]
[]
[]
[]
[null,"Aprovação pela Secção de Avaliação em:    ______ / ______ / _________"]
[]
[null,"Assinaturas:                  "]
[]
[]
[]
[]
[]
[]
[null,"Comunicação da Avaliação Final do Desempenho"]
[]
[null,"Tomei conhecimento"]
[]
[null,"Data: ______ / ______ / __________"]
[]
[null,"Assinatura do Avaliado: __________________________________"]

{"sheet":"Profs Quadro Sem Aulas Obser","index":3,"n_rows":89,"n_cols":30,"rows_kept":89,"cut":false,"hidden":false,"merged":[[64,1,64,9],[68,1,72,23],[73,1,73,23],[77,1,77,23],[79,1,79,23],[59,2,59,19],[59,20,59,23],[61,13,61,22],[54,2,54,22],[55,19,55,23],[56,20,56,21],[56,22,56,23],[57,1,57,23],[58,2,58,19],[58,20,58,23],[53,2,53,22],[40,2,40,21],[41,2,41,22],[42,2,42,21],[42,23,52,23],[43,2,43,21],[44,2,44,21],[45,2,45,21],[46,2,46,21],[47,2,47,21],[48,2,48,21],[49,2,49,21],[50,2,50,21],[51,2,51,21],[52,2,52,21],[32,2,32,23],[33,2,33,21],[33,23,34,23],[34,2,34,21],[35,2,35,23],[36,2,36,21],[36,23,40,23],[37,2,37,21],[38,2,38,21],[39,2,39,21],[26,2,26,23],[27,2,27,21],[27,23,31,23],[28,2,28,21],[29,2,29,21],[30,2,30,21],[31,2,31,21],[25,2,25,22],[10,1,10,23],[11,29,13,29],[12,5,12,18],[12,20,12,22],[16,5,16,13],[16,18,16,22],[16,29,17,29],[18,1,18,23],[20,6,20,8],[20,10,20,12],[22,6,22,15],[22,19,22,22],[8,5,8,13],[8,18,8,22],[2,1,2,23],[3,1,3,23],[4,1,4,23],[6,5,6,18],[6,20,6,22]]}
[]
[]
[null,"FICHA DE REGISTO AVALIAÇÃO DO DESEMPENHO DOCENTE"]
[null,"PRÉ-ESCOLAR, 1º, 2º E 3º CICLOS E SECUNDÁRIO-PROFESSORES DOS QUADROS (Sem Aulas Observadas) "]
[null,"QUADRO A - Identificação do Avaliado",null,null,null,null,null,null,null,null,null,null,null,null,null,null,null,null,null,null,null,null,null,null,null,null,null,null,null,"Escala de referência "]
[]
[null,null,null,null,"Nome:",null,null,null,null,null,null,null,null,null,null,null,null,null,null,"NIF:",null,null,null,null,null,null,null,null,null,"À classificação quantitativa de cada uma das menções qualitativas correspondem os seguintes pontos: Excelente - 10-9 valores; Muito Bom -8,9-8 valores; Bom - 7,9- 6,5 valores; Regular -6,4-5,0 valores; Insuficiente - 4,9 - 0 valores."]
[]
[null,null,null,null,"Departamento Curricular:",null,null,null,null,null,null,null,null,null,null,null,null,"Grupo de Recrutamento: "]
[]
[null,"QUADRO B - Identificação do Avaliador"]
[null,null,null,null,null,null,null,null,null,null,null,null,null,null,null,null,null,null,null,null,null,null,null,null,null,null,null,null,null,"O docente cumpre genericamente os aspetos fundamentais do desempenho neste parâmetro mas com algumas insuficiências ou lacunas"]
[null,null,null,null,"Nome:",null,null,null,null,null,null,null,null,null,null,null,null,null,null,"NIF:"]
[]
[null,"Condição de Avaliador:",null,null,null,null,null,null,"Avaliador interno:",null,null,null,null,null,null,null," Coordenador de Departamento:","X",null,null,null," Diretor:"]
[null,null,null,null,null,null,null,null,null,null,null,null,null,null,null,null,null," "]
[null,null,null,null,"Departamento Curricular:",null,null,null,null,null,null,null,null,null,null,null,null,"Grupo de Recrutamento: ",null,null,null,null,null,null,null,null,null,null,null,"O desempenho docente corresponde sempre ao indicador da competência no parâmetro e revela elevada e consistente qualidade "]
[]
[null,"QUADRO C - Condições de Avaliação  ",null,null,null,null,null,null,null,null,null,null,null,null,null,null,null,null,null,null,null,null,null,null,null,null,null,null,null,"O desempenho docente corresponde plenamente ao indicador da competência no parâmetro e revela elevada e consistente qualidade constituindo-se uma referência no grupo/escola/comunidade"]
[]
[null,"Período de avaliação:",null,null,null,"de",null,null,null,"a","2023-08-31",null,null,null,null,"Componente letiva:",null,null,"Sim","X",null,"Não"]
[]
[null,null,null,null,null,"Instituição onde exerceu funções:","Agrupamento de Escolas da Trafaria",null,null,null,null,null,null,null,null,null,null,null,"Função exercida:","Docente"]
[]
[]
[null,"A","DIMENSÃO CIENTIFICA E PEDAGÓGICA",null,null,null,null,null,null,null,null,null,null,null,null,null,null,null,null,null,null,null,null,{"$f":"AVERAGE(X28,X34,X37)*0.6","v":6}]
[null,"A1","Preparação e organização das atividades letivas"]
[null,"A1.1","Demonstra conhecimento científico, pedagógico e didático inerente à disciplina ou área curricular.",null,null,null,null,null,null,null,null,null,null,null,null,null,null,null,null,null,null,null,10,{"$f":"AVERAGE(W28:W32)","v":10}]
[null,"A1.2","Planifica o ensino de acordo com as finalidades e as aprendizagens previstas no currículo/orientações curriculares e rentabiliza os meios e recursos. ",null,null,null,null,null,null,null,null,null,null,null,null,null,null,null,null,null,null,null,10]
[null,"A1.3","Integra a sua planificação no quadro dos vários níveis e âmbitos da   decisão   curricular,   tendo   em conta a articulação vertical e horizontal, em conjunto com os pares.",null,null,null,null,null,null,null,null,null,null,null,null,null,null,null,null,null,null,null,10]
[null,"A1.4","Concebe e planifica estratégias adequadas aos diferentes alunos e contextos.",null,null,null,null,null,null,null,null,null,null,null,null,null,null,null,null,null,null,null,10]
[null,"A1.5","Planifica de forma integrada e coerente os vários tipos de avaliação.",null,null,null,null,null,null,null,null,null,null,null,null,null,null,null,null,null,null,null,10]
[null,"A2","Relação pedagógica com os alunos"]
[null,"A2.1","Promove e gere processos de comunicação e interação entre os alunos.",null,null,null,null,null,null,null,null,null,null,null,null,null,null,null,null,null,null,null,10,{"$f":"AVERAGE(W34:W35)","v":10}]
[null,"A2.2","Promove o respeito pelas regras de convivência e cidadania.",null,null,null,null,null,null,null,null,null,null,null,null,null,null,null,null,null,null,null,10]
[null,"A3","Processo de avaliação das aprendizagens dos alunos"]
[null,"A3.1","Demonstra conhecimento científico, pedagógico e didático inerente à disciplina/área curricular.",null,null,null,null,null,null,null,null,null,null,null,null,null,null,null,null,null,null,null,10,{"$f":"AVERAGE(W37:W41)","v":10}]
[null,"A3.2","Desenvolve atividades de avaliação das aprendizagens para efeitos de diagnóstico, regulação do processo de ensino e avaliação e certificação de resultados.",null,null,null,null,null,null,null,null,null,null,null,null,null,null,null,null,null,null,null,10]
[null,"A3.3","Promove processos de autorregulação nos alunos que lhes permitam apreciar e melhorar os seus desempenhos.",null,null,null,null,null,null,null,null,null,null,null,null,null,null,null,null,null,null,null,10]
[null,"A3.4","Aplica instrumentos adequados à monitorização da sua atividade.",null,null,null,null,null,null,null,null,null,null,null,null,null,null,null,null,null,null,null,10]
[null,"A3.5","Reorienta a planificação e o desenvolvimento do ensino de acordo com a apreciação realizada.",null,null,null,null,null,null,null,null,null,null,null,null,null,null,null,null,null,null,null,10]
[null,"B","PARTICIPAÇÃO NA ESCOLA E RELAÇÃO COM A COMUNIDADE EDUCATIVA",null,null,null,null,null,null,null,null,null,null,null,null,null,null,null,null,null,null,null,null,{"$f":"X43*0.2","v":2}]
[null,"B1","Participação na conceção, desenvolvimento e avaliação dos documentos institucionais orientadores da vida da escola",null,null,null,null,null,null,null,null,null,null,null,null,null,null,null,null,null,null,null,{"$f":"AVERAGE(W44:W46)","v":10},{"$f":"AVERAGE(W43,W47,W51)","v":10}]
[null,"B1.1","Contribui para a eficácia das estruturas de coordenação educativa e supervisão pedagógica, nos órgãos de administração e gestão e noutras estruturas  em que participou.",null,null,null,null,null,null,null,null,null,null,null,null,null,null,null,null,null,null,null,10]
[null,"B1.2","Participa na conceção e uso de dispositivos de avaliação da escola.",null,null,null,null,null,null,null,null,null,null,null,null,null,null,null,null,null,null,null,10]
[null,"B1.3","Envolve-se em ações que visam a participação de pais e encarregados de educação e/ou outras entidades.",null,null,null,null,null,null,null,null,null,null,null,null,null,null,null,null,null,null,null,10]
[null,"B2","Participação nas estruturas de coordenação educativa e supervisão e nos órgãos de administração e gestão",null,null,null,null,null,null,null,null,null,null,null,null,null,null,null,null,null,null,null,{"$f":"AVERAGE(W48:W50)","v":10}]
[null,"B2.1","Participa em projetos de trabalho colaborativo na escola.",null,null,null,null,null,null,null,null,null,null,null,null,null,null,null,null,null,null,null,10]
[null,"B2.2","Apresenta propostas que contribuem para a melhoria do desempenho da escola.",null,null,null,null,null,null,null,null,null,null,null,null,null,null,null,null,null,null,null,10]
[null,"B2.3","Contribui para a eficácia das estruturas de coordenação educativa e supervisão pedagógica e nos órgãos de administração.",null,null,null,null,null,null,null,null,null,null,null,null,null,null,null,null,null,null,null,10]
[null,"B3","Dinamização de Projetos e Atividades da escola que visam o Desenvolvimento da Comunidade",null,null,null,null,null,null,null,null,null,null,null,null,null,null,null,null,null,null,null,{"$f":"AVERAGE(W52:W53)","v":10}]
[null,"B3.1","Envolve-se em projetos e atividades da escola que visam o desenvolvimento da comunidade.",null,null,null,null,null,null,null,null,null,null,null,null,null,null,null,null,null,null,null,10]
[null,"B3.2","Apresenta propostas que contribuem para a melhoria do desempenho da escola.",null,null,null,null,null,null,null,null,null,null,null,null,null,null,null,null,null,null,null,10]
[null,"C","FORMAÇÃO CONTÍNUA E DESENVOLVIMENTO PROFISSIONAL",null,null,null,null,null,null,null,null,null,null,null,null,null,null,null,null,null,null,null,null,{"$f":"X55*0.2","v":2}]
[null,"C.1","Participa em ações de formação e em processos de atualização do conhecimento profissional. ",null,null,null,null,null,null,null,null,null,null,null,null,null,null,null,null,null,null,null,null,10]
[null,null,null,null,null,null,null,null,null,null,null,null,null,null,null,null,null,null,null,"Classificação final proposta (0,60xA+0,20xB+0,20xC)"]
[null,null,null,null,null,null,null,null,null,null,null,null,null,null,null,null,null,null,null,"Avaliação Final ",{"$f":" X42+X54+X26","v":10}]
[]
[null,null,"Pontuação Final:",null,null,null,null,null,null,null,null,null,null,null,null,null,null,null,null,null,{"$f":"ROUND(X26+X42+X54,1)","v":10}]
[null,null,"PROPOSTA DE CLASSIFICAÇÃO:",null,null,null,null,null,null,null,null,null,null,null,null,null,null,null,null,null,{"$f":"IF(U59<5,\"Insuf\",IF(U59<6.5,\"Regular\",IF(U59<8,\"Bom\",\"Muito Bom\")))","v":"Muito Bom"}]
[]
[null,null,null,"Data:","____/ ____/ _____",null,null,null,null,null,null,"O Avaliador:"]
[null,null,null,"Data:","____/ ____/ _____",null,null,null,null,null,null,"O Avaliado:"]
[]
[null,"Avaliação Final do Desempenho"]
[]
[null,"Classificação: ___________________________________ Menção Qualitativa: ________________________"]
[]
[null,"Fundamentação da avaliação:"]
[]
[]
[]
[]
[null,"Aprovação pela Secção de Avaliação em:    ______ / ______ / _________"]
[]
[null,"Assinaturas:                  "]
[]
[]
[]
[]
[]
[]
[null,"Comunicação da Avaliação Final do Desempenho"]
[]
[null,"Tomei conhecimento"]
[]
[null,"Data: ______ / ______ / __________"]
[]
[null,"Assinatura do Avaliado: __________________________________"]

{"sheet":"Profs Quadro Com Aulas Observ","index":4,"n_rows":90,"n_cols":30,"rows_kept":90,"cut":false,"hidden":false,"merged":[[65,1,65,9],[69,1,73,23],[74,1,74,23],[78,1,78,23],[80,1,80,23],[41,2,41,21],[25,2,25,22],[26,2,26,23],[27,2,27,21],[27,23,31,23],[28,2,28,21],[29,2,29,21],[30,2,30,21],[31,2,31,21],[32,2,32,23],[33,2,33,21],[33,23,34,23],[34,2,34,21],[36,2,36,21],[38,2,38,21],[39,2,39,21],[2,1,2,23],[3,1,3,23],[4,1,4,23],[6,5,6,18],[10,1,10,23],[6,20,6,22],[8,5,8,13],[8,18,8,22],[40,2,40,21],[11,29,13,29],[16,29,17,29],[16,5,16,13],[16,18,16,22],[20,6,20,8],[20,10,20,12],[18,1,18,23],[12,5,12,18],[12,20,12,22],[22,19,22,22],[22,6,22,15],[35,2,35,23],[36,23,40,23],[37,2,37,21],[42,2,42,22],[43,2,43,21],[43,23,53,23],[44,2,44,21],[45,2,45,21],[47,2,47,21],[48,2,48,21],[49,2,49,21],[50,2,50,21],[51,2,51,21],[52,2,52,21],[53,2,53,21],[46,2,46,21],[54,2,54,22],[55,2,55,22],[56,19,56,23],[58,1,58,23],[57,20,57,21],[57,22,57,23],[62,13,62,22],[59,2,59,19],[59,20,59,23],[60,2,60,19],[60,20,60,23]]}
[]
[]
[null,"FICHA DE REGISTO AVALIAÇÃO DO DESEMPENHO DOCENTE"]
[null,"PRÉ-ESCOLAR, 1º, 2º E 3º CICLOS E SECUNDÁRIO-PROFESSORES DOS QUADROS (Com Aulas Observadas) "]
[null,"QUADRO A - Identificação do Avaliado",null,null,null,null,null,null,null,null,null,null,null,null,null,null,null,null,null,null,null,null,null,null,null,null,null,null,null,"Escala de referência "]
[]
[null,null,null,null,"Nome:",null,null,null,null,null,null,null,null,null,null,null,null,null,null,"NIF:",null,null,null,null,null,null,null,null,null,"À classificação quantitativa de cada uma das menções qualitativas correspondem os seguintes pontos: Excelente - 10-9 valores; Muito Bom -8,9-8 valores; Bom - 7,9- 6,5 valores; Regular -6,4-5,0 valores; Insuficiente - 4,9 - 0 valores."]
[]
[null,null,null,null,"Departamento Curricular:",null,null,null,null,null,null,null,null,null,null,null,null,"Grupo de Recrutamento: "]
[]
[null,"QUADRO B - Identificação do Avaliador"]
[null,null,null,null,null,null,null,null,null,null,null,null,null,null,null,null,null,null,null,null,null,null,null,null,null,null,null,null,null,"O docente cumpre genericamente os aspetos fundamentais do desempenho neste parâmetro mas com algumas insuficiências ou lacunas"]
[null,null,null,null,"Nome:",null,null,null,null,null,null,null,null,null,null,null,null,null,null,"NIF:"]
[]
[null,"Condição de Avaliador:",null,null,null,null,null,null,"Avaliador interno:",null,null,null,null,null,null,null," Coordenador de Departamento:","X",null,null,null," Diretor:"]
[null,null,null,null,null,null,null,null,null,null,null,null,null,null,null,null,null," "]
[null,null,null,null,"Departamento Curricular:",null,null,null,null,null,null,null,null,null,null,null,null,"Grupo de Recrutamento: ",null,null,null,null,null,null,null,null,null,null,null,"O desempenho docente corresponde sempre ao indicador da competência no parâmetro e revela elevada e consistente qualidade "]
[]
[null,"QUADRO C - Condições de Avaliação  ",null,null,null,null,null,null,null,null,null,null,null,null,null,null,null,null,null,null,null,null,null,null,null,null,null,null,null,"O desempenho docente corresponde plenamente ao indicador da competência no parâmetro e revela elevada e consistente qualidade constituindo-se uma referência no grupo/escola/comunidade"]
[]
[null,"Período de avaliação:",null,null,null,"de",null,null,null,"a","2023-08-31",null,null,null,null,"Componente letiva:",null,null,"Sim","X",null,"Não"]
[]
[null,null,null,null,null,"Instituição onde exerceu funções:","Agrupamento de Escolas da Trafaria",null,null,null,null,null,null,null,null,null,null,null,"Função exercida:","Docente"]
[]
[]
[null,"A","DIMENSÃO CIENTIFICA E PEDAGÓGICA",null,null,null,null,null,null,null,null,null,null,null,null,null,null,null,null,null,null,null,null,{"$f":"(AVERAGE(X28,X34,X37)*0.3 +X42*0.7)*0.6","v":5.4648000000000003}]
[null,"A1","Preparação e organização das atividades letivas"]
[null,"A1.1","Demonstra conhecimento científico, pedagógico e didático inerente à disciplina ou área curricular.",null,null,null,null,null,null,null,null,null,null,null,null,null,null,null,null,null,null,null,8.6,{"$f":"AVERAGE(W28:W32)","v":8.68}]
[null,"A1.2","Planifica o ensino de acordo com as finalidades e as aprendizagens previstas no currículo/orientações curriculares e rentabiliza os meios e recursos. ",null,null,null,null,null,null,null,null,null,null,null,null,null,null,null,null,null,null,null,8.4]
[null,"A1.3","Integra a sua planificação no quadro dos vários níveis e âmbitos da   decisão   curricular,   tendo   em conta a articulação vertical e horizontal, em conjunto com os pares.",null,null,null,null,null,null,null,null,null,null,null,null,null,null,null,null,null,null,null,9]
[null,"A1.4","Concebe e planifica estratégias adequadas aos diferentes alunos e contextos.",null,null,null,null,null,null,null,null,null,null,null,null,null,null,null,null,null,null,null,9.4]
[null,"A1.5","Planifica de forma integrada e coerente os vários tipos de avaliação.",null,null,null,null,null,null,null,null,null,null,null,null,null,null,null,null,null,null,null,8]
[null,"A2","Relação pedagógica com os alunos"]
[null,"A2.1","Promove e gere processos de comunicação e interação entre os alunos.",null,null,null,null,null,null,null,null,null,null,null,null,null,null,null,null,null,null,null,10,{"$f":"AVERAGE(W34:W35)","v":10}]
[null,"A2.2","Promove o respeito pelas regras de convivência e cidadania.",null,null,null,null,null,null,null,null,null,null,null,null,null,null,null,null,null,null,null,10]
[null,"A3","Processo de avaliação das aprendizagens dos alunos"]
[null,"A3.1","Demonstra conhecimento científico, pedagógico e didático inerente à disciplina/área curricular.",null,null,null,null,null,null,null,null,null,null,null,null,null,null,null,null,null,null,null,10,{"$f":"AVERAGE(W37:W41)","v":9.4}]
[null,"A3.2","Desenvolve atividades de avaliação das aprendizagens para efeitos de diagnóstico, regulação do processo de ensino e avaliação e certificação de resultados.",null,null,null,null,null,null,null,null,null,null,null,null,null,null,null,null,null,null,null,9]
[null,"A3.3","Promove processos de autorregulação nos alunos que lhes permitam apreciar e melhorar os seus desempenhos.",null,null,null,null,null,null,null,null,null,null,null,null,null,null,null,null,null,null,null,9]
[null,"A3.4","Aplica instrumentos adequados à monitorização da sua atividade.",null,null,null,null,null,null,null,null,null,null,null,null,null,null,null,null,null,null,null,9]
[null,"A3.5","Reorienta a planificação e o desenvolvimento do ensino de acordo com a apreciação realizada.",null,null,null,null,null,null,null,null,null,null,null,null,null,null,null,null,null,null,null,10]
[null,"A4","CLASSIFICAÇÃO DA AVALIAÇÃO EXTERNA",null,null,null,null,null,null,null,null,null,null,null,null,null,null,null,null,null,null,null,null,9]
[null,"B","PARTICIPAÇÃO NA ESCOLA E RELAÇÃO COM A COMUNIDADE EDUCATIVA",null,null,null,null,null,null,null,null,null,null,null,null,null,null,null,null,null,null,null,null,{"$f":"X44*0.2","v":1.946666666666667}]
[null,"B1","Participação na conceção, desenvolvimento e avaliação dos documentos institucionais orientadores da vida da escola",null,null,null,null,null,null,null,null,null,null,null,null,null,null,null,null,null,null,null,{"$f":"AVERAGE(W45:W47)","v":9.2000000000000011},{"$f":"AVERAGE(W44,W48,W52)","v":9.7333333333333343}]
[null,"B1.1","Contribui para a eficácia das estruturas de coordenação educativa e supervisão pedagógica, nos órgãos de administração e gestão e noutras estruturas  em que participou.",null,null,null,null,null,null,null,null,null,null,null,null,null,null,null,null,null,null,null,9]
[null,"B1.2","Participa na conceção e uso de dispositivos de avaliação da escola.",null,null,null,null,null,null,null,null,null,null,null,null,null,null,null,null,null,null,null,8.6]
[null,"B1.3","Envolve-se em ações que visam a participação de pais e encarregados de educação e/ou outras entidades.",null,null,null,null,null,null,null,null,null,null,null,null,null,null,null,null,null,null,null,10]
[null,"B2","Participação nas estruturas de coordenação educativa e supervisão e nos órgãos de administração e gestão",null,null,null,null,null,null,null,null,null,null,null,null,null,null,null,null,null,null,null,{"$f":"AVERAGE(W49:W51)","v":10}]
[null,"B2.1","Participa em projetos de trabalho colaborativo na escola.",null,null,null,null,null,null,null,null,null,null,null,null,null,null,null,null,null,null,null,10]
[null,"B2.2","Apresenta propostas que contribuem para a melhoria do desempenho da escola.",null,null,null,null,null,null,null,null,null,null,null,null,null,null,null,null,null,null,null,10]
[null,"B2.3","Contribui para a eficácia das estruturas de coordenação educativa e supervisão pedagógica e nos órgãos de administração.",null,null,null,null,null,null,null,null,null,null,null,null,null,null,null,null,null,null,null,10]
[null,"B3","Dinamização de Projetos e Atividades da escola que visam o Desenvolvimento da Comunidade",null,null,null,null,null,null,null,null,null,null,null,null,null,null,null,null,null,null,null,{"$f":"AVERAGE(W53:W54)","v":10}]
[null,"B3.1","Envolve-se em projetos e atividades da escola que visam o desenvolvimento da comunidade.",null,null,null,null,null,null,null,null,null,null,null,null,null,null,null,null,null,null,null,10]
[null,"B3.2","Apresenta propostas que contribuem para a melhoria do desempenho da escola.",null,null,null,null,null,null,null,null,null,null,null,null,null,null,null,null,null,null,null,10]
[null,"C","FORMAÇÃO CONTÍNUA E DESENVOLVIMENTO PROFISSIONAL",null,null,null,null,null,null,null,null,null,null,null,null,null,null,null,null,null,null,null,null,{"$f":"X56*0.2","v":2}]
[null,"C.1","Participa em ações de formação e em processos de atualização do conhecimento profissional. ",null,null,null,null,null,null,null,null,null,null,null,null,null,null,null,null,null,null,null,null,10]
[null,null,null,null,null,null,null,null,null,null,null,null,null,null,null,null,null,null,null,"Classificação final proposta (0,60xA+0,20xB+0,20xC)"]
[null,null,null,null,null,null,null,null,null,null,null,null,null,null,null,null,null,null,null,"Avaliação Final ",{"$f":" X43+X55+X26","v":9.4114666666666675}]
[]
[null,null,"Pontuação Final:",null,null,null,null,null,null,null,null,null,null,null,null,null,null,null,null,null,{"$f":"ROUND(X26+X43+X55,1)","v":9.4}]
[null,null,"PROPOSTA DE CLASSIFICAÇÃO:",null,null,null,null,null,null,null,null,null,null,null,null,null,null,null,null,null,{"$f":"IF(U60<5,\"Insuf\",IF(U60<6.5,\"Regular\",IF(U60<8,\"Bom\",IF(U60<9,\"Muito Bom\",\"Excelente\"))))","v":"Excelente"}]
[]
[null,null,null,"Data:","____/ ____/ _____",null,null,null,null,null,null,"O Avaliador:"]
[null,null,null,"Data:","____/ ____/ _____",null,null,null,null,null,null,"O Avaliado:"]
[]
[null,"Avaliação Final do Desempenho"]
[]
[null,"Classificação: ___________________________________ Menção Qualitativa: ________________________"]
[]
[null,"Fundamentação da avaliação:"]
[]
[]
[]
[]
[null,"Aprovação pela Secção de Avaliação em:    ______ / ______ / _________"]
[]
[null,"Assinaturas:                  "]
[]
[]
[]
[]
[]
[]
[null,"Comunicação da Avaliação Final do Desempenho"]
[]
[null,"Tomei conhecimento"]
[]
[null,"Data: ______ / ______ / __________"]
[]
[null,"Assinatura do Avaliado: __________________________________"]